bitfinex-derivatives/quotes_SOLF0:USTF0_20250831
["timestamp","ask_amount","ask_price","bid_price","bid_amount"]
[1756626100920,1.52940434,203.64,203.63,7.79]
[1756626101123,1.52940434,203.64,203.63,12.5200273]
[1756626101525,1.52940434,203.64,203.63,12.50692844]
[1756626105423,5.49847144,203.65,203.63,12.50692844]
[1756626105629,5.49847144,203.65,203.64,12.50692844]
[1756626106829,7.02787578,203.66,203.64,12.50692844]
[1756626107030,7.02787578,203.66,203.65,4.71692844]
[1756626107421,7.04787578,203.66,203.65,4.71692844]
[1756626112133,7.04787578,203.66,203.61,7.79]
[1756626112337,1.52940434,203.63,203.62,12.35558661]
[1756626112633,120.80940434,203.63,203.62,12.35558661]
[1756626120738,119.28,203.63,203.62,12.35558661]
[1756626121741,119.28,203.63,203.62,7.79]
[1756626121942,119.28,203.63,203.62,12.4539811]
[1756626124241,1.52940434,203.65,203.62,12.4539811]
[1756626124541,1.52940434,203.65,203.64,7.79]
[1756626124741,23.94940434,203.65,203.64,12.4539811]
[1756626124942,23.96940434,203.65,203.64,4.6639811]
[1756626125944,120.80940434,203.65,203.64,4.6639811]
[1756626127145,1.54940434,203.65,203.64,4.6639811]
[1756626127337,120.80940434,203.65,203.64,4.6639811]
[1756626127939,1.54940434,203.65,203.64,4.6639811]
[1756626128145,120.80940434,203.65,203.64,4.6639811]
[1756626129144,1.54940434,203.65,203.64,4.6639811]
[1756626129546,120.80940434,203.65,203.64,4.6639811]
[1756626129741,126.30787578,203.65,203.64,4.6639811]
[1756626132258,126.30787578,203.65,203.59,7.49]
[1756626132447,1.52940434,203.63,203.61,7.49]
[1756626132650,119.24,203.62,203.61,7.49]
[1756626132850,119.24,203.62,203.61,12.14557168]
[1756626135154,119.24,203.64,203.62,7.49]
[1756626135355,119.24,203.64,203.63,12.14557168]
[1756626135956,119.24,203.64,203.63,7.49]
[1756626136157,119.24,203.64,203.63,12.15150568]
[1756626136857,5.49847144,203.69,203.64,7.49]
[1756626137152,1.52940434,203.7,203.66,7.49]
[1756626137358,1.52940434,203.7,203.67,12.14578096]
[1756626137561,1.52940434,203.7,203.68,4.65578096]
[1756626137754,1.52940434,203.7,203.69,4.65578096]
[1756626140458,21.58,203.71,203.7,7.49]
[1756626140660,21.58,203.71,203.7,12.14578096]
[1756626140859,119.22,203.72,203.71,7.49]
[1756626141060,119.22,203.72,203.71,12.14578096]
[1756626141462,120.74940434,203.73,203.71,12.14578096]
[1756626141662,120.74940434,203.73,203.72,4.65578096]
[1756626142467,119.22,203.73,203.72,12.14578096]
[1756626142870,119.22,203.73,203.72,7.49]
[1756626143068,119.22,203.73,203.72,12.12505533]
[1756626144562,119.2,203.74,203.73,7.49]
[1756626144769,119.2,203.74,203.73,12.12505533]
[1756626149474,119.2,203.74,203.73,4.63505533]
[1756626152879,1.52940434,203.78,203.73,4.63505533]
[1756626153078,1.52940434,203.78,203.74,4.63505533]
[1756626153378,1.52940434,203.78,203.75,4.63505533]
[1756626153572,1.52940434,203.78,203.72,7.49]
[1756626153776,1.52940434,203.78,203.73,12.09162103]
[1756626153975,1.52940434,203.78,203.74,4.60162103]
[1756626154179,1.52940434,203.78,203.75,4.60162103]
[1756626154378,1.52940434,203.78,203.73,7.49]
[1756626154580,1.52940434,203.78,203.74,4.60041753]
[1756626154879,1.52940434,203.78,203.75,4.60041753]
[1756626155078,1.52940434,203.78,203.73,7.49]
[1756626155280,1.52940434,203.78,203.71,1.52940434]
[1756626155281,1.52940434,203.78,203.74,12.08961893]
[1756626155583,1.52940434,203.78,203.75,12.08961893]
[1756626155779,330.0,203.88,203.76,4.59882044]
[1756626155983,1.52940434,203.8,203.74,7.49]
[1756626156276,1.52940434,203.8,203.76,7.49]
[1756626157183,11.26,203.81,203.76,7.49]
[1756626157483,12.78940434,203.81,203.74,7.49]
[1756626157783,12.78940434,203.81,203.75,4.59657082]
[1756626158085,12.78940434,203.81,203.76,4.59657082]
[1756626158278,12.78940434,203.81,203.74,7.26]
[1756626158479,1.52940434,203.8,203.75,4.5960562]
[1756626158777,1.52940434,203.8,203.76,4.5960562]
[1756626158975,1.52940434,203.8,203.74,7.26]
[1756626159183,1.52940434,203.8,203.75,4.5960562]
[1756626159383,1.52940434,203.8,203.76,4.5960562]
[1756626159584,1.52940434,203.8,203.75,7.26]
[1756626159780,1.52940434,203.8,203.76,4.59546813]
[1756626160082,1.52940434,203.8,203.75,7.26]
[1756626160275,1.52940434,203.8,203.76,4.59468673]
[1756626160474,1.52940434,203.8,203.75,7.26]
[1756626160676,1.52940434,203.8,203.76,11.85466416]
[1756626160883,11.26,203.81,203.76,7.26]
[1756626161080,1.52940434,203.8,203.76,7.26]
[1756626161883,1.52940434,203.8,203.73,1.52940434]
[1756626161884,1.52940434,203.8,203.74,7.26]
[1756626162083,1.52940434,203.8,203.75,4.59427906]
[1756626162283,1.52940434,203.8,203.77,7.26]
[1756626164985,1.52940434,203.8,203.74,7.26]
[1756626165185,1.52940434,203.8,203.75,4.59397697]
[1756626165386,1.52940434,203.8,203.77,7.26]
[1756626166289,19.88,203.83,203.73,1.52940434]
[1756626166488,1.52940434,203.8,203.74,4.59379059]
[1756626166786,1.52940434,203.8,203.75,4.59379059]
[1756626166985,1.52940434,203.8,203.76,4.59379059]
[1756626167185,1.52940434,203.8,203.78,7.26]
[1756626168183,19.88,203.83,203.78,7.26]
[1756626168389,1.52940434,203.8,203.78,7.26]
[1756626171594,19.88,203.83,203.74,7.26]
[1756626171794,1.52940434,203.81,203.76,7.26]
[1756626171988,1.52940434,203.81,203.78,7.26]
[1756626172396,1.52940434,203.81,203.79,4.59634888]
[1756626172595,1.52940434,203.81,203.74,7.26]
[1756626172893,19.88,203.83,203.76,7.26]
[1756626173193,1.52940434,203.81,203.77,4.59632573]
[1756626173392,1.52940434,203.81,203.75,1.52940434]
[1756626173393,1.52940434,203.81,203.78,4.59632573]
[1756626173593,1.52940434,203.81,203.8,7.26]
[1756626173989,19.88,203.83,203.8,7.26]
[1756626174292,119.08,203.85,203.75,1.52940434]
[1756626174591,1.52940434,203.82,203.77,7.26]
[1756626174786,1.52940434,203.82,203.78,4.59886213]
[1756626175087,1.52940434,203.82,203.8,7.26]
[1756626175285,330.0,203.88,203.77,1.52940434]
[1756626175489,1.52940434,203.84,203.79,7.26]
[1756626175691,1.52940434,203.84,203.81,7.26]
[1756626175892,1.52940434,203.84,203.78,7.26]
[1756626176188,1.52940434,203.84,203.79,4.59995077]
[1756626176393,1.52940434,203.84,203.81,7.26]
[1756626176596,1.52940434,203.84,203.78,7.26]
[1756626176788,1.52940434,203.84,203.8,7.26]
[1756626176986,1.52940434,203.84,203.78,7.26]
[1756626177295,1.52940434,203.84,203.77,1.52940434]
[1756626177296,1.52940434,203.82,203.79,4.60195956]
[1756626177491,1.52940434,203.82,203.8,4.60195956]
[1756626177694,1.52940434,203.82,203.76,7.26]
[1756626177894,1.52940434,203.82,203.75,1.52940434]
[1756626177895,1.52940434,203.82,203.77,4.60428427]
[1756626178197,1.52940434,203.82,203.78,4.60428427]
[1756626178396,1.52940434,203.82,203.79,11.86428427]
[1756626178597,1.52940434,203.82,203.8,11.86428427]
[1756626178797,1.52940434,203.82,203.81,4.60428427]
[1756626179295,119.08,203.87,203.81,4.60428427]
[1756626179485,1.52940434,203.82,203.8,7.26]
[1756626179690,1.52940434,203.82,203.81,4.60978195]
[1756626181194,1.52940434,203.82,203.81,4.61322002]
[1756626184199,1.52940434,203.82,203.81,11.87322002]
[1756626184701,1.52940434,203.82,203.81,11.88471833]
[1756626185200,5.49847144,203.87,203.82,7.26]
[1756626185498,5.49847144,203.87,203.83,4.62471833]
[1756626185499,1.52940434,203.86,203.83,4.62471833]
[1756626185698,1.52940434,203.86,203.85,7.26]
[1756626185901,1.52940434,203.86,203.85,11.88471833]
[1756626193306,119.06,203.87,203.85,11.88471833]
[1756626193512,119.06,203.87,203.86,12.46471833]
[1756626193814,120.58940434,203.87,203.86,12.46471833]
[1756626194514,120.58940434,203.87,203.86,4.62471833]
[1756626195012,120.58940434,203.87,203.82,7.84]
[1756626195211,120.58940434,203.87,203.84,7.84]
[1756626195415,120.58940434,203.87,203.85,4.64078077]
[1756626195610,120.58940434,203.87,203.86,4.64078077]
[1756626202320,120.58940434,203.87,203.86,12.48078077]
[1756626203122,119.06,203.87,203.86,12.48078077]
[1756626203423,120.58940434,203.87,203.86,12.48078077]
[1756626203722,119.06,203.87,203.86,12.48078077]
[1756626204023,120.52940434,203.87,203.86,12.48078077]
[1756626205625,1.52940434,203.87,203.86,12.48078077]
[1756626205825,120.52940434,203.87,203.86,12.74010189]
[1756626208924,120.52940434,203.87,203.86,4.90010189]
[1756626216633,120.52940434,203.87,203.83,7.84]
[1756626216837,120.52940434,203.87,203.84,4.89828177]
[1756626217132,120.52940434,203.87,203.85,4.89828177]
[1756626217328,120.52940434,203.87,203.86,4.89828177]
[1756626219829,119.0,203.87,203.86,4.89828177]
[1756626220134,120.52940434,203.87,203.86,4.89828177]
[1756626222137,1.52940434,203.87,203.86,12.70828177]
[1756626222332,118.98,203.87,203.86,12.70828177]
[1756626224934,118.98,203.87,203.86,4.89828177]
[1756626226340,1.52940434,203.88,203.86,12.70828177]
[1756626226528,1.52940434,203.88,203.87,12.70828177]
[1756626226734,118.96,203.9,203.87,4.89828177]
[1756626226940,118.96,203.9,203.88,12.70828177]
[1756626227236,118.96,203.9,203.89,4.89828177]
[1756626227538,118.96,203.9,203.89,12.69675921]
[1756626229336,10.99689575,204.02,203.89,12.69675921]
[1756626229337,118.96,203.91,203.9,7.81]
[1756626229639,118.96,203.91,203.9,4.88675921]
[1756626231539,118.96,203.91,203.8,7.81]
[1756626231839,118.96,203.91,203.82,7.81]
[1756626232039,1.52940434,203.88,203.82,7.81]
[1756626232339,119.36,203.87,203.81,1.52940434]
[1756626233039,119.36,203.87,203.82,7.81]
[1756626233640,119.36,203.87,203.81,1.52940434]
[1756626233945,119.36,203.87,203.82,7.81]
[1756626234241,119.36,203.87,203.81,1.52940434]
[1756626234736,119.36,203.87,203.82,7.81]
[1756626234943,119.36,203.87,203.8,1.52940434]
[1756626235240,119.36,203.87,203.81,7.81]
[1756626239144,1.52940434,203.86,203.81,7.81]
[1756626239352,119.36,203.87,203.81,7.81]
[1756626239647,1.52940434,203.86,203.81,7.81]
[1756626239850,1.52940434,203.86,203.8,9.33940434]
[1756626240446,119.36,203.87,203.8,9.33940434]
[1756626240647,1.52940434,203.86,203.8,9.33940434]
[1756626243253,119.36,203.87,203.8,9.33940434]
[1756626243452,1.52940434,203.88,203.81,4.61812917]
[1756626243654,1.52940434,203.88,203.83,7.81]
[1756626243846,1.52940434,203.88,203.84,12.42812917]
[1756626244046,1.52940434,203.88,203.85,4.61812917]
[1756626244248,1.52940434,203.88,203.86,4.61812917]
[1756626244548,1.52940434,203.88,203.87,4.61812917]
[1756626246446,5.49847144,203.94,203.87,4.61812917]
[1756626246651,1.52940434,203.89,203.88,4.61812917]
[1756626247551,1.52940434,203.9,203.88,4.61696786]
[1756626247749,1.52940434,203.91,203.89,4.61696786]
[1756626248050,1.52940434,203.91,203.84,1.52940434]
[1756626248051,1.52940434,203.91,203.9,4.61696935]
[1756626253554,5.49847144,203.96,203.9,4.61696935]
[1756626253754,119.58,203.95,203.91,4.61696935]
[1756626254052,119.58,203.95,203.92,4.61696935]
[1756626254253,119.58,203.95,203.87,7.51]
[1756626254552,125.07847144,203.95,203.88,4.61547078]
[1756626254854,1.52940434,203.9,203.89,4.61547078]
[1756626255054,121.06940434,203.9,203.89,4.61547078]
[1756626255456,1.52940434,203.9,203.89,4.61547078]
[1756626255749,121.04940434,203.9,203.89,4.61547078]
[1756626257459,1.52940434,203.9,203.89,12.12547078]
[1756626257757,121.04940434,203.9,203.89,12.12547078]
[1756626258058,121.04940434,203.9,203.89,7.51]
[1756626258260,121.04940434,203.9,203.89,12.12636367]
[1756626259561,121.04940434,203.9,203.89,4.61636367]
[1756626260660,1.52940434,203.9,203.89,4.61636367]
[1756626260960,120.98940434,203.9,203.89,4.61636367]
[1756626267269,5.49847144,203.93,203.89,12.12636367]
[1756626267465,120.94940434,203.9,203.89,7.51]
[1756626267664,120.94940434,203.9,203.89,12.15719841]
[1756626268170,1.52940434,203.9,203.89,12.15719841]
[1756626268472,121.06940434,203.9,203.89,12.15719841]
[1756626268664,119.54,203.9,203.89,12.15719841]
[1756626268870,119.54,203.9,203.89,12.1572788]
[1756626269669,119.54,203.9,203.89,12.1574078]
[1756626272373,119.54,203.9,203.89,4.6474078]
[1756626272765,119.54,203.9,203.86,7.51]
[1756626273071,119.54,203.9,203.84,1.52940434]
[1756626273072,119.54,203.9,203.85,7.51]
[1756626273272,1.52940434,203.89,203.83,7.51]
[1756626275776,1.52940434,203.89,203.85,7.51]
[1756626275976,1.52940434,203.89,203.86,4.57170793]
[1756626276176,1.52940434,203.89,203.88,7.51]
[1756626276374,1.52940434,203.89,203.88,12.08170793]
[1756626278478,1.52940434,203.89,203.88,4.57170793]
[1756626279177,1.52940434,203.91,203.88,4.57170793]
[1756626279382,1.52940434,203.91,203.89,12.31170793]
[1756626279581,1.52940434,203.91,203.9,4.57170793]
[1756626282185,119.46,203.93,203.9,4.57170793]
[1756626282392,1.52940434,203.91,203.84,7.74]
[1756626282684,1.52940434,203.91,203.83,1.52940434]
[1756626282685,1.52940434,203.91,203.86,7.74]
[1756626282986,1.52940434,203.91,203.88,7.74]
[1756626283187,1.52940434,203.91,203.89,12.30951064]
[1756626283387,1.52940434,203.91,203.9,4.56951064]
[1756626283789,119.46,203.93,203.9,12.30951064]
[1756626283990,1.52940434,203.91,203.9,7.74]
[1756626284187,1.52940434,203.91,203.9,12.30927445]
[1756626284688,1.52940434,203.91,203.9,4.56927445]
[1756626285191,119.46,203.93,203.9,12.30927445]
[1756626285389,1.52940434,203.91,203.9,7.74]
[1756626285588,1.52940434,203.91,203.9,12.30923967]
[1756626286883,121.06940434,203.91,203.9,12.30923967]
[1756626289497,121.06940434,203.91,203.9,4.56923967]
[1756626291900,119.54,203.91,203.9,4.56923967]
[1756626292200,121.06940434,203.91,203.9,4.56923967]
[1756626293301,121.06940434,203.91,203.9,4.57339444]
[1756626294303,121.06940434,203.91,203.9,4.57358407]
[1756626296103,121.06940434,203.91,203.84,7.74]
[1756626296304,1.52940434,203.86,203.85,12.30775289]
[1756626296504,120.96940434,203.86,203.85,12.30775289]
[1756626300410,120.96940434,203.86,203.85,4.56775289]
[1756626301706,121.46940434,203.86,203.73,5.62461042]
[1756626301913,1.52940434,203.79,203.71,5.62461042]
[1756626302210,1.52940434,203.77,203.72,7.74]
[1756626304514,1.52940434,203.77,203.69,7.74]
[1756626304713,1.52940434,203.75,203.69,9.26940434]
[1756626305209,1.52940434,203.75,203.69,7.74]
[1756626305416,1.52940434,203.73,203.68,7.74]
[1756626307015,1.52940434,203.77,203.7,1.52940434]
[1756626307215,1.52940434,203.77,203.71,7.74]
[1756626307417,1.52940434,203.75,203.68,1.52940434]
[1756626307618,1.52940434,203.75,203.69,7.74]
[1756626312223,1.52940434,203.73,203.67,7.79]
[1756626314225,1.52940434,203.71,203.67,7.79]
[1756626314421,1.52940434,203.71,203.64,1.52940434]
[1756626314627,1.52940434,203.71,203.65,7.79]
[1756626323228,1.52940434,203.7,203.65,7.79]
[1756626326430,1.52940434,203.7,203.64,7.79]
[1756626328131,329.8,203.84,203.64,7.79]
[1756626328332,1.52940434,203.71,203.66,7.79]
[1756626330132,1.52940434,203.71,203.65,1.52940434]
[1756626330334,1.52940434,203.71,203.66,7.79]
[1756626330539,1.52940434,203.71,203.65,1.52940434]
[1756626330739,119.24,203.75,203.66,7.79]
[1756626330939,119.24,203.75,203.65,1.52940434]
[1756626330940,1.52940434,203.71,203.65,1.52940434]
[1756626331442,1.52940434,203.71,203.66,7.79]
[1756626332241,1.52940434,203.71,203.6,7.79]
[1756626332436,1.52940434,203.67,203.62,1.52940434]
[1756626332837,1.52940434,203.67,203.63,7.79]
[1756626333340,1.52940434,203.67,203.61,7.79]
[1756626334935,119.24,203.75,203.61,7.79]
[1756626335133,119.2,203.74,203.64,1.52940434]
[1756626335332,119.2,203.74,203.65,7.79]
[1756626335333,1.52940434,203.71,203.65,7.79]
[1756626336138,1.52940434,203.7,203.56,4.08744629]
[1756626336334,1.52940434,203.7,203.64,1.52940434]
[1756626336730,1.52940434,203.7,203.65,7.79]
[1756626336932,1.52940434,203.7,203.64,1.52940434]
[1756626337839,1.52940434,203.7,203.65,7.61]
[1756626338041,5.49847144,203.81,203.65,7.61]
[1756626338338,1.52940434,203.72,203.66,1.52940434]
[1756626338542,1.52940434,203.72,203.67,7.61]
[1756626338738,1.52940434,203.72,203.66,1.52940434]
[1756626338938,1.52940434,203.72,203.67,7.61]
[1756626339140,1.52940434,203.72,203.66,1.52940434]
[1756626339335,1.52940434,203.72,203.58,4.08744629]
[1756626339539,1.52940434,203.72,203.66,1.52940434]
[1756626339740,1.52940434,203.72,203.67,7.61]
[1756626339939,1.52940434,203.72,203.66,1.52940434]
[1756626340544,1.52940434,203.72,203.67,7.61]
[1756626341146,1.52940434,203.72,203.66,1.52940434]
[1756626341548,1.52940434,203.72,203.67,7.61]
[1756626341738,1.52940434,203.72,203.65,7.61]
[1756626344045,1.52940434,203.72,203.67,7.61]
[1756626344945,1.52940434,203.72,203.66,7.61]
[1756626345145,1.52940434,203.7,203.64,1.52940434]
[1756626345448,2.38688575,203.73,203.65,7.61]
[1756626347045,10.66,203.72,203.65,7.61]
[1756626347244,2.38688575,203.7,203.65,7.61]
[1756626347641,2.38688575,203.7,203.59,11.70447519]
[1756626347841,2.38688575,203.7,203.6,7.61]
[1756626355253,2.38688575,203.7,203.61,7.61]
[1756626357357,10.66,203.72,203.61,7.61]
[1756626358254,2.38688575,203.73,203.62,7.61]
[1756626358459,22.70688575,203.73,203.62,7.61]
[1756626363966,5.49693512,203.77,203.62,7.61]
[1756626364165,2.38688575,203.74,203.63,7.61]
[1756626365167,5.49693512,203.77,203.63,7.61]
[1756626365362,5.49693512,203.77,203.61,2.38688575]
[1756626365363,335.45693512,203.79,203.67,7.61]
[1756626365568,1.52722357,203.73,203.67,7.61]
[1756626367065,1.52722357,203.71,203.64,11.71500975]
[1756626367260,1.52722357,203.65,203.64,7.61]
[1756626367463,1.52722357,203.65,203.61,7.31]
[1756626367667,1.52722357,203.65,203.6,7.31]
[1756626367862,1.52722357,203.67,203.61,1.52722357]
[1756626368068,1.52722357,203.67,203.62,7.31]
[1756626368968,1.52722357,203.67,203.61,1.52722357]
[1756626369370,2.38759589,203.7,203.62,7.31]
[1756626375371,19.02759589,203.7,203.62,7.31]
[1756626378580,34.84759589,203.7,203.62,7.31]
[1756626388489,2.38759589,203.7,203.62,7.31]
[1756626388887,2.38759589,203.71,203.62,7.31]
[1756626389286,1.52790347,203.68,203.62,7.31]
[1756626392191,1.52790347,203.68,203.62,8.83790347]
[1756626394896,60.38,203.72,203.62,8.83790347]
[1756626395193,1.52790347,203.68,203.62,8.83790347]
[1756626397194,1.52790347,203.68,203.62,7.31]
[1756626398096,1.52790347,203.66,203.6,5.63291322]
[1756626398396,1.52790347,203.66,203.61,7.53]
[1756626398586,1.52790347,203.66,203.6,5.63291322]
[1756626398990,1.52790347,203.66,203.61,7.53]
[1756626400896,1.52790347,203.68,203.61,7.53]
[1756626402692,1.52790347,203.7,203.62,1.52790347]
[1756626403000,1.52790347,203.73,203.67,7.53]
[1756626403695,1.52790347,203.68,203.62,7.53]
[1756626404394,1.52790347,203.66,203.61,7.53]
[1756626404601,1.52790347,203.66,203.6,7.53]
[1756626406401,1.52790347,203.66,203.6,4.10500975]
[1756626406600,1.52790347,203.66,203.61,7.53]
[1756626406800,1.52790347,203.66,203.6,4.10500975]
[1756626407199,1.52790347,203.66,203.61,7.53]
[1756626407796,1.52790347,203.66,203.6,4.10500975]
[1756626408001,1.52790347,203.66,203.61,7.53]
[1756626408602,1.52790347,203.66,203.6,4.10500975]
[1756626408801,1.52790347,203.66,203.61,7.53]
[1756626409002,1.52790347,203.66,203.6,4.10500975]
[1756626409198,1.52790347,203.66,203.61,7.53]
[1756626409400,1.52790347,203.66,203.6,4.10500975]
[1756626409596,1.52790347,203.66,203.61,7.53]
[1756626409794,1.52790347,203.66,203.6,4.10500975]
[1756626410502,1.52790347,203.66,203.61,7.53]
[1756626410900,1.52790347,203.64,203.59,4.10500975]
[1756626411294,1.52790347,203.64,203.61,7.53]
[1756626411499,1.52790347,203.64,203.6,4.10500975]
[1756626411693,1.52790347,203.64,203.61,7.53]
[1756626412096,1.52790347,203.64,203.6,4.10500975]
[1756626412401,1.52790347,203.64,203.61,7.53]
[1756626412602,1.52790347,203.64,203.6,4.10500975]
[1756626412995,1.52790347,203.64,203.61,7.53]
[1756626413597,1.52790347,203.64,203.6,4.10500975]
[1756626414406,1.52790347,203.64,203.61,7.53]
[1756626414705,1.52790347,203.64,203.6,4.10500975]
[1756626414905,1.52790347,203.66,203.61,7.53]
[1756626415101,1.52790347,203.66,203.6,5.63291322]
[1756626415303,1.52790347,203.66,203.61,7.53]
[1756626417510,1.52790347,203.66,203.6,5.63291322]
[1756626417712,1.52790347,203.66,203.61,7.53]
[1756626418412,1.52790347,203.66,203.6,5.63291322]
[1756626418910,1.52790347,203.66,203.61,7.53]
[1756626420605,1.52790347,203.66,203.6,5.63291322]
[1756626420806,1.52790347,203.66,203.61,7.53]
[1756626421209,1.52790347,203.66,203.6,5.63291322]
[1756626421513,1.52790347,203.66,203.61,7.53]
[1756626421919,25.84,203.7,203.61,7.53]
[1756626422112,1.52790347,203.68,203.63,7.53]
[1756626423524,1.52790347,203.68,203.62,1.52790347]
[1756626423922,1.52790347,203.68,203.63,7.53]
[1756626424317,1.52790347,203.68,203.62,1.52790347]
[1756626424514,1.52790347,203.68,203.63,7.53]
[1756626427721,1.52790347,203.68,203.63,7.77]
[1756626428121,1.52790347,203.68,203.62,5.63291322]
[1756626428823,1.52790347,203.68,203.63,7.77]
[1756626429725,1.52790347,203.68,203.62,5.63291322]
[1756626430022,1.52790347,203.68,203.63,7.77]
[1756626430323,1.52790347,203.66,203.62,7.77]
[1756626430719,1.52790347,203.66,203.61,4.10500975]
[1756626430915,1.52790347,203.66,203.62,7.77]
[1756626431119,1.52790347,203.66,203.61,4.10500975]
[1756626432317,1.52790347,203.66,203.62,7.77]
[1756626432723,1.52790347,203.66,203.61,4.10500975]
[1756626433222,1.52790347,203.66,203.6,1.52790347]
[1756626433223,1.52790347,203.66,203.62,4.10500975]
[1756626433825,1.52790347,203.66,203.63,7.77]
[1756626434025,1.52790347,203.66,203.62,4.10500975]
[1756626434624,1.52790347,203.66,203.63,7.77]
[1756626434927,1.52790347,203.66,203.62,4.10500975]
[1756626435226,1.52790347,203.66,203.63,7.77]
[1756626435426,1.52790347,203.66,203.61,4.10500975]
[1756626436126,1.52790347,203.66,203.62,7.77]
[1756626436327,1.52790347,203.66,203.63,7.77]
[1756626437230,1.52790347,203.66,203.62,4.10500975]
[1756626437431,1.52790347,203.66,203.63,7.77]
[1756626438126,1.52790347,203.66,203.62,7.77]
[1756626439221,1.52790347,203.66,203.61,4.10500975]
[1756626439423,1.52790347,203.66,203.62,7.77]
[1756626439621,1.52790347,203.66,203.61,4.10500975]
[1756626440032,1.52790347,203.66,203.62,7.77]
[1756626440420,1.52790347,203.66,203.61,4.10500975]
[1756626440625,1.52790347,203.66,203.62,7.77]
[1756626440826,1.52790347,203.66,203.61,4.10500975]
[1756626441225,1.52790347,203.66,203.62,7.77]
[1756626442225,1.52790347,203.66,203.61,4.10500975]
[1756626442428,1.52790347,203.66,203.62,7.77]
[1756626442629,1.52790347,203.66,203.61,4.10500975]
[1756626443231,1.52790347,203.66,203.62,7.77]
[1756626443434,1.52790347,203.66,203.61,4.10500975]
[1756626444235,1.52790347,203.66,203.62,7.77]
[1756626445835,1.52790347,203.67,203.61,4.10500975]
[1756626446226,1.52790347,203.67,203.62,7.77]
[1756626446627,1.52790347,203.67,203.61,4.10500975]
[1756626446831,1.52790347,203.67,203.62,7.77]
[1756626447037,1.52790347,203.67,203.61,4.10500975]
[1756626448237,1.52790347,203.68,203.62,7.77]
[1756626449537,45.78,203.73,203.62,9.29790347]
[1756626449738,1.52790347,203.69,203.62,5.63291322]
[1756626449936,1.52790347,203.69,203.63,7.77]
[1756626450132,1.52790347,203.71,203.64,1.52790347]
[1756626450336,1.52790347,203.73,203.67,1.52790347]
[1756626450537,1.52790347,203.73,203.68,7.77]
[1756626450737,1.52790347,203.73,203.69,4.6549255]
[1756626450937,1.52790347,203.73,203.71,7.77]
[1756626451140,1.52790347,203.73,203.72,4.6549255]
[1756626455342,1.52790347,203.73,203.72,12.4249255]
[1756626456233,1.52790347,203.73,203.72,4.6549255]
[1756626459339,14.6,203.77,203.72,4.6549255]
[1756626459544,1.52790347,203.74,203.73,11.9249255]
[1756626460545,1.52790347,203.75,203.74,7.27]
[1756626460746,1.52790347,203.75,203.74,11.9249255]
[1756626461346,1.52790347,203.75,203.74,7.27]
[1756626461549,1.52790347,203.75,203.74,11.85648197]
[1756626463943,1.52790347,203.75,203.74,4.58648197]
[1756626470044,2.02790347,203.75,203.65,7.27]
[1756626470245,1.52790347,203.66,203.65,7.27]
[1756626470446,1.52790347,203.66,203.59,4.10500975]
[1756626470643,1.52790347,203.61,203.6,7.27]
[1756626472054,1.52790347,203.61,203.54,7.27]
[1756626472252,1.52790347,203.57,203.51,75.15919983]
[1756626472448,1.52790347,203.57,203.52,7.27]
[1756626473348,2.39034757,203.59,203.51,7.27]
[1756626479758,15.76,203.61,203.51,7.27]
[1756626481154,2.39034757,203.59,203.51,7.27]
[1756626481359,2.39034757,203.56,203.51,7.27]
[1756626481757,2.39034757,203.56,203.44,7.27]
[1756626483656,2.39034757,203.59,203.46,2.39034757]
[1756626483959,2.39034757,203.59,203.47,7.27]
[1756626489357,28.29034757,203.59,203.47,7.27]
[1756626490765,2.39034757,203.55,203.47,7.27]
[1756626493469,2.39034757,203.59,203.47,7.27]
[1756626493470,37.52,203.57,203.47,7.27]
[1756626494265,2.39034757,203.59,203.47,7.27]
[1756626501674,2.39034757,203.55,203.47,7.27]
[1756626507080,2.41034757,203.55,203.47,7.27]
[1756626507475,0.02,203.54,203.47,7.27]
[1756626507680,2.39034757,203.52,203.47,7.27]
[1756626507878,0.02,203.51,203.47,7.27]
[1756626508180,0.02,203.51,203.42,7.73]
[1756626508980,0.02,203.51,203.42,10.12034757]
[1756626509171,0.02,203.51,203.43,7.73]
[1756626511280,2.39034757,203.55,203.43,7.73]